Cogmind - Beta 11.1 @@@ ROGUE MODE // 2022.05.14 @ 19:29:21 Player: laserbat Result: Self-destructed Performance ------------- Evolutions (3) 1500 Regions Visited (4) 800 Robots Destroyed (0) 0 Value Destroyed (0) 0 Prototype IDs (0) 0 Alien Tech Used (0) 0 Bonus (834) 834 TOTAL SCORE: 3134 Bonus ------- Pacifist 834 Cogmind --------- Core Integrity 700/700 Matter 295/300 Energy 99/100 System Corruption 0% Temperature Cool (0) Movement Core (50) Location -7/Factory Parts ------- > --- POWER (1) -------- (None) > --- PROPULSION (4) --- (None) > --- UTILITY (6) ------ (None) > --- WEAPON (2) ------- (None) > --- INVENTORY (5) ---- System Shield Improved Datajack Peak State ------------ > --- POWER ------------ (None) > --- PROPULSION ------- VTOL Module > --- UTILITY ---------- (None) > --- WEAPON ----------- (None) > --- INVENTORY -------- System Shield Improved Datajack [Rating: 2] Favorites ----------- Power None Propulsion VTOL Module Flight Unit VTOL Module Utility None Weapon None Build | -11 -10 -9 -8 -7 ------- Run | Scr Mat Mat Mat Fac Slots Evolved 6 | . . 2 2 2 Power . | . . . . . Propulsion 2 | . . 2 . . Utility 4 | . . . 2 2 Weapon . | . . . . . Parts Attached 1 | . . . 1 . Power . | . . . . . Engine . | . . . . . Core . | . . . . . Reactor . | . . . . . Propulsion 1 | . . . 1 . Treads . | . . . . . Leg . | . . . . . Wheel . | . . . . . Hover . | . . . . . Flight 1 | . . . 1 . Utility . | . . . . . Device . | . . . . . Storage . | . . . . . Processor . | . . . . . Hackware . | . . . . . Protection . | . . . . . Artifact . | . . . . . Weapon . | . . . . . Energy Gun . | . . . . . Energy Cannon . | . . . . . Ballistic Gun . | . . . . . Ballistic Cannon . | . . . . . Launcher . | . . . . . Special Weapon . | . . . . . Impact Weapon . | . . . . . Slashing Weapon . | . . . . . Piercing Weapon . | . . . . . Special Melee Weapon . | . . . . . Unidentified Prototypes . | . . . . . Parts Lost 1 | . . . 1 . Power . | . . . . . Propulsion 1 | . . . 1 . Utility . | . . . . . Weapon . | . . . . . Highest Loss Streak 1 | . . . 1 . To Critical Strikes . | . . . . . Average Slot Usage (%) 1 | . . . 2 . Flight 1 | . . . 2 . Naked Turns 198 | . 33 55 74 36 Heaviest Build . | . . . . . Greatest Support 4 | 3 3 3 4 3 Greatest Overweight (x) . | . . . . . Average Overweight (x) . | . . . . . Largest Inventory Capacity 5 | 5 5 5 5 5 Average Capacity 5 | 5 5 5 5 5 Most Carried 4 | 4 . . 2 2 Average Carried . | 2 . . 1 2 Final Capacity 5 | 5 5 5 5 5 Final Carried 2 | . . . 2 2 Class Distribution -------------------- 100% | Mutant Dominant Class ---------------- Mutant | -10/Materials Mutant | -9/Materials Mutant | -8/Materials Mutant | -7/Factory Resources | -11 -10 -9 -8 -7 ----------- Run | Scr Mat Mat Mat Fac Matter Collected 200 | 200 . . . . Remotely . | . . . . . Salvage Created . | . . . . . Parts . | . . . . . Haulers Intercepted . | . . . . . Recyclers Shooed . | . . . . . Parts Field Recycled . | . . . . . Retrieved Matter . | . . . . . Parts Self-Destructed . | . . . . . Prevented . | . . . . . Kills | -11 -10 -9 -8 -7 ------- Run | Scr Mat Mat Mat Fac Combat Hostiles Destroyed . | . . . . . Classes Destroyed . | . . . . . Best Kill Streak . | . . . . . Combat Bots Only . | . . . . . Max Kills in Single Turn . | . . . . . Gunslinging . | . . . . . Exploded . | . . . . . Melee . | . . . . . Uniques/NPCs Destroyed . | . . . . . Combat | -11 -10 -9 -8 -7 -------- Run | Scr Mat Mat Mat Fac Damage Taken 334 | . . . 334 . Core 309 | . . . 309 . Absorbed by Shields . | . . . . . Core Remaining (%) 85 | 100 100 100 43 . Volleys Fired . | . . . . . Largest . | . . . . . Hottest . | . . . . . Shots Fired . | . . . . . Gun . | . . . . . Cannon . | . . . . . Launcher . | . . . . . Special . | . . . . . Kinetic . | . . . . . Thermal . | . . . . . Explosive . | . . . . . Electromagnetic . | . . . . . Robot Hit Streak . | . . . . . Robot Miss Streak . | . . . . . Penetration Max . | . . . . . Secondary Targets . | . . . . . Shots Hit Robots . | . . . . . Core Hits . | . . . . . Critical Kills . | . . . . . Critical Parts Destroyed . | . . . . . Critical Strikes . | . . . . . Melee Attacks . | . . . . . Impact . | . . . . . Slashing . | . . . . . Piercing . | . . . . . Sneak Attacks . | . . . . . Combat Hostiles . | . . . . . Follow-up Attacks . | . . . . . Damage Inflicted . | . . . . . Guns . | . . . . . Cannons . | . . . . . Explosions . | . . . . . Melee . | . . . . . Ramming . | . . . . . Kinetic . | . . . . . Thermal . | . . . . . Explosive . | . . . . . Electromagnetic . | . . . . . Impact . | . . . . . Slashing . | . . . . . Piercing . | . . . . . Highest Corruption . | . . . . . Average Corruption . | . . . . . Corruption Purged . | . . . . . Corruption Blocked . | . . . . . Overload Shots . | . . . . . Overflow Damage . | . . . . . Projectiles . | . . . . . Explosions . | . . . . . Melee . | . . . . . Knockbacks . | . . . . . Impact . | . . . . . Kinetic . | . . . . . Secondary . | . . . . . Self-Inflicted Damage . | . . . . . Shots . | . . . . . Rammed . | . . . . . Targets Rammed . | . . . . . Kicked . | . . . . . Crushed . | . . . . . Highest Temperature . | . . . . . Average Temperature . | . . . . . Received Heat Transfer 72 | . . . 72 . Siege Activations . | . . . . . Robots Corrupted . | . . . . . Combat Hostiles . | . . . . . Parts Fried . | . . . . . Impact Corruptions . | . . . . . Robots Melted . | . . . . . Combat Hostiles . | . . . . . Parts Melted . | . . . . . Heat Transferred . | . . . . . Parts Sabotaged . | . . . . . Parts Stolen . | . . . . . Parts Stripped . | . . . . . Power Chain Reactions . | . . . . . Missiles Intercepted . | . . . . . Alert | -11 -10 -9 -8 -7 ------- Run | Scr Mat Mat Mat Fac Peak Influence 164 | . 20 23 164 89 Initial 74 | . . 8 9 74 Average 49 | . 9 8 74 80 Maximum Alert Level . | . . . . . Low Security (%) 100 | 100 100 100 100 100 Level 1 . | . . . . . Level 2 . | . . . . . Level 3 . | . . . . . Level 4 . | . . . . . Level 5 . | . . . . . High Security . | . . . . . Max Security . | . . . . . Squads Dispatched 3 | . . . 2 1 Investigation . | . . . . . Extermination . | . . . . . Reinforcement 3 | . . . 2 1 Assault . | . . . . . Garrison . | . . . . . Intercept . | . . . . . Searches Triggered . | . . . . . Construction Impeded . | . . . . . Haulers Reinforced . | . . . . . Active Scanning Responses . | . . . . . Cargo Convoy Interrupts . | . . . . . Stealth | -11 -10 -9 -8 -7 --------- Run | Scr Mat Mat Mat Fac Distress Signals . | . . . . . Communications Jammed . | . . . . . Distress Signals . | . . . . . Times Spotted 26 | . 1 4 20 1 Peak Tracking Total 16 | . 1 5 16 1 Tactical Retreats 3 | . . 1 2 . Traps | -11 -10 -9 -8 -7 ------- Run | Scr Mat Mat Mat Fac Traps Triggered 1 | . 1 . . . Indirectly . | . . . . . Trap Hack Attempts . | . . . . . Triggered . | . . . . . Disarmed . | . . . . . Reprogrammed . | . . . . . Reused . | . . . . . Traps Extracted . | . . . . . Installed . | . . . . . Triggered . | . . . . . Machines | -11 -10 -9 -8 -7 ---------- Run | Scr Mat Mat Mat Fac Machines Disabled . | . . . . . Max in Single Turn . | . . . . . Machines Sabotaged . | . . . . . Garrisons Compromised . | . . . . . Overloaded Fab Kills . | . . . . . Hacking | -11 -10 -9 -8 -7 --------- Run | Scr Mat Mat Mat Fac Machines Accessed 2 | . 2 . . . Terminals 2 | . 2 . . . Fabricators . | . . . . . Repair Stations . | . . . . . Recycling Units . | . . . . . Scanalyzers . | . . . . . Garrison Access . | . . . . . Total Hacks 9 | . 9 . . . Successful 4 | . 4 . . . Failed 5 | . 5 . . . Catastrophic 1 | . 1 . . . Database Lockouts . | . . . . . Manual 7 | . 7 . . . Terminals 9 | . 9 . . . Fabricators . | . . . . . Repair Stations . | . . . . . Recycling Units . | . . . . . Scanalyzers . | . . . . . Garrison Access . | . . . . . Terminal Hacks 2 | . 2 . . . Terminal Index 1 | . 1 . . . Zone Layout 1 | . 1 . . . Fabricator Hacks . | . . . . . Repair Station Hacks . | . . . . . Recycling Unit Hacks . | . . . . . Scanalyzer . | . . . . . Garrison Access Hacks . | . . . . . Unauthorized Hacks 2 | . 2 . . . Terminals 2 | . 2 . . . Botnet 2 | . 2 . . . Fabricators . | . . . . . Repair Stations . | . . . . . Recycling Units . | . . . . . Scanalyzers . | . . . . . Garrison Access . | . . . . . Data Cores Recovered . | . . . . . Used . | . . . . . Hacking Detections 2 | . 2 . . . Full Trace Events 1 | . 1 . . . Feedback Events . | . . . . . Feedback Blocked . | . . . . . Robot Schematics Acquired . | . . . . . Robots Built . | . . . . . Authchips . | . . . . . Time . | . . . . . Total Robot Build Rating . | . . . . . Part Schematics Acquired . | . . . . . Parts Built . | . . . . . Authchips . | . . . . . Time . | . . . . . Total Part Build Rating . | . . . . . Parts Repaired . | . . . . . Time . | . . . . . Parts Recycled . | . . . . . Recycled Matter . | . . . . . Retrieved Matter . | . . . . . Retrieved Components . | . . . . . Parts Scanalyzed . | . . . . . Part Schematics Acquired . | . . . . . Parts Damaged . | . . . . . Bothacking | -11 -10 -9 -8 -7 ------------ Run | Scr Mat Mat Mat Fac Used RIF Installer . | . . . . . Robots Hacked . | . . . . . Non-combat . | . . . . . Combat . | . . . . . Robot Hacks Applied . | . . . . . Relay Couplers Released . | . . . . . Fabnet Peak Effective % . | . . . . . Robots Rewired . | . . . . . Allies Hacked . | . . . . . Hacks Repelled . | . . . . . Allies | -11 -10 -9 -8 -7 -------- Run | Scr Mat Mat Mat Fac Total Allies . | . . . . . Largest Group . | . . . . . Highest-Rated Group . | . . . . . Highest-Rated Ally . | . . . . . Total Orders . | . . . . . Ally Attacks . | . . . . . Total Damage . | . . . . . Kills . | . . . . . Allies Corrupted . | . . . . . Allies Melted . | . . . . . Intel | -11 -10 -9 -8 -7 ------- Run | Scr Mat Mat Mat Fac Robot Analysis Total . | . . . . . Derelict Logs Recovered . | . . . . . Drone Launches . | . . . . . Drone Recoveries . | . . . . . Exploration | -11 -10 -9 -8 -7 ------------- Run | Scr Mat Mat Mat Fac Turns Passed 231 | 3 33 55 104 36 Spaces Moved 472 | 1 65 110 225 71 Core 390 | 1 65 110 143 71 Treads . | . . . . . Legs . | . . . . . Wheels . | . . . . . Hover . | . . . . . Flight 82 | . . . 82 . Fastest Speed 35 | 50 50 50 35 50 Average Speed 47 | 50 50 50 44 50 Slowest Speed 50 | 50 50 50 50 50 Overloaded Moves . | . . . . . Propulsion Burnouts . | . . . . . Robots Hopped 4 | . . . 4 . Cave-ins Triggered . | . . . . . Exploration Rate (%) 12 | 2 17 14 26 3 Regions Visited 4 Branch Regions . Pre-discovered Areas . | . . . . . Known Exits Taken . | . . . . . Unknown Exits Taken 4 | 1 1 1 1 . Scrap Searched . | . . . . . Spaces Dug . | . . . . . Terrain Destroyed . | . . . . . Melee . | . . . . . Projectile . | . . . . . AOE . | . . . . . Terrain Rammed . | . . . . . Walls Destroyed . | . . . . . Machines Disabled . | . . . . . Actions | -11 -10 -9 -8 -7 --------- Run | Scr Mat Mat Mat Fac Total 472 | 5 64 109 223 71 Wait . | . . . . . Move 460 | . 64 109 216 71 Hop 4 | . . . 4 . Pick Up 2 | . . . 2 . Fast Attach 1 | . . . 1 . Attach . | . . . . . Detach . | . . . . . Swap . | . . . . . Drop 5 | 5 . . . . Fire . | . . . . . Melee . | . . . . . Ram . | . . . . . Kick . | . . . . . Crush . | . . . . . Escape Stasis . | . . . . . Rewire . | . . . . . Trap . | . . . . . Miscellaneous . | . . . . . Route ------- -11/Scrapyard -10/Materials -9/Materials -8/Materials -7/Factory History --------- Turn | Location | Event 1 | -11/Scrapyard | Released all parts (6) 4 | -11/Scrapyard | Discovered new exit (range 0) 4 | -11/Scrapyard | Entered Materials 29 | -10/Materials | Discovered new exit (range 16) 37 | -10/Materials | Entered another Materials area 37 | -9/Materials | Evolved 2 slots: Propulsion x2 90 | -9/Materials | Discovered new exit (range 4) 92 | -9/Materials | Entered another Materials area 92 | -8/Materials | Evolved 2 slots: Utility x2 194 | -8/Materials | Discovered new exit (range 5) 196 | -8/Materials | Core integrity fell below 50% 196 | -8/Materials | Entered Factory 196 | -7/Factory | Evolved 2 slots: Utility x2 232 | -7/Factory | Self-destructed Last Messages --------------- 00108_ O-16 Technician locks terminal. 00110_ K-01 Serf collects debris. 00120_ Acquired Imp. Datajack. 00128_ K-01 Serf collects debris. 00149_ Acquired System Shield. 00154_ Critical hit (Burn: +37). 00162_ Acquired VTOL Module. 00172_ H-61 Shepherd calls for reinforcements. 00172_ ALERT: Suspicious intruders detected, dispatching Cutter reinforcements to area. 00186_ K-01 Serf collects debris. 00192_ VTOL Module destroyed. 00194_ EXIT=FOUND 00195_ Knocked back. PARAMETERS=UTILITY+2 LOCATION=UNKNOWN GOAL=ESCAPE 00216_ O-24 Administrator: "IFF HANDSHAKE FAILED. SECURING TERMINAL." 00218_ ALERT: Hostiles spotted, dispatching reinforcements to Terminal F009. Map ----- +----------------------------------------------------+ | ??????????????# #???????????????????? | | ??????????????# #???????????????????? | | ??????????????# #???????????????????? | | ??????????????# +???????????????????? | | ??????????????+ #???????????????????? | | ??????????????# #???????????????????? | | ??????????????# #???????????????????? | | ??????????????# #???????????????????? | | ??????????????# #???????????????????? | | ??????????????# #???????????????????? | | ??????????????# #???????????????????? | | ??????????????# +???????????????????? | | ??????????????# #???????????????????? | | ???????""""???# #???????????????????? | | ?????# """""??# ##+#####????????????? | | ?????? ?# #????????????? | | ??????? # #????????????? | | ????????"T"" # #????????????? | | ????????"""" / #????????????? | | ?????# # #????????????? | | ############### ####+#+##########???? | | # # #???? | | # # #???? | | # # #???? | | # # #???? | | + + @ #???? | | # # #???? | | # # """" """" #???? | | # # """" """" #???? | | ############### # """" """"????????? | | ??????????????# # """" """"????????? | | ??????????????# ############????????? | | ??????????????# #???????????????????? | | ??????????????# #???????????????????? | | ??????????????# #???????????????????? | | ??????????????# #???????????????????? | | ??????????????# #???????????????????? | | ??????????????# #???????????????????? | | ??????????????+ #???????????????????? | | ??????????????# +???????????????????? | | ??????????????# #???????????????????? | | ??????????????# #???????????????????? | | ??????????????# #???????????????????? | | ??????????????# #???????????????????? | | ??????????????# #???????????????????? | | ??????????????# #???????????????????? | | ??????????????# #???????????????????? | | ??????????????# #???????????????????? | | ??????????????# #???????????????????? | | ??????????????# #???????????????????? | +----------------------------------------------------+ Best States ------------- Heat Dissipation 34 Energy Generation 5 Energy Capacity 100 Matter Stores 300 Matter Capacity 300 Sight Range 16 Terrain Scan Density 10 Evasion (%) 63 Item Schematics ----------------- None Robot Schematics ------------------ None Fabricated ------------ Nothing Alien Tech Used ----------------- None Achievements -------------- None Challenges ------------ None Game ------ Seed AdvancedSupersonicRipper Manual? 0 Play Time 00:03:16 Cumulative 258.7 hours Start 2022.05.14 @ 19:26:23 End 2022.05.14 @ 19:29:21 Sessions 1 Manual Loads 0 Difficulty Rogue Special Mode None Game No. 416 Rogue 413 Adventurer 0 Explorer 3 Win Type - Total 9 Types 9/0/0/0/0/0/0/0/0 Lore% 71 Gallery% 75 Achievement% 63 Wizard Run 0 Options --------- ASCII 1 Keyboard 1 Movement Vi Keybinds 0 Fullscreen 1 Font 18/SmallcapsGlow Map View 76x50 Tactical HUD 1 Map Filters NONE Filters NONE Steam 1 RUN: 6b22e540-509e-41bc-8362-9f67c710e6a3